Workbook

Sheet Budget for Asha Seattle 2013-14
B3: Door Step School And Asha Seattle
B4: Educational Activity Centers
B5: Estimated Budget (2 Centers) April 2013-March 2014
B6: Sr. No. | C6: Particulars | D6: Rate/ Cost per Month | E6: No. of Months | F6: No. of Persons | G6: Total in Rs.
B7: I | C7: MANAGEMENT COST
B8: 1 | C8: Management Salary (part cost) | D8: 1210 | E8: 12 | G8: =D8*E8 -> 14520
C9: Total of I | G9: =G8 -> 14520
B10: III | C10: STAFF WELFARE
B11: 1 | C11: Mediclaim
C12: Supervisors and Coordinators | D12: 225 | F12: 2 | G12: =D12*F12 -> 450
C13: Teachers | D13: =900*75% -> 675 | F13: 5 | G13: =D13*F13 -> 3375
B14: 2 | C14: Staff Event | D14: 300 | F14: 7 | G14: =D14*F14 -> 2100
C15: Total of II | G15: =G12+G13+G14 -> 5925
B16: III | C16: PROGRAM EXPENSES
B17: 1 | C17: Coordinator Salary (Part Salary) | D17: 2208 | E17: 12 | F17: 1 | G17: =D17*E17*F17 -> 26496
B18: 2 | C18: Supervisors Salaries (Part Salary) | D18: 3036 | E18: 12 | F18: 1 | G18: =D18*E18*F18 -> 36432
B19: 3 | C19: Teachers Salaries | D19: 4686 | E19: 12 | F19: 5 | G19: =D19*E19*F19 -> 281160 | H19: Basic + PF (12%) + Travel Allowance (13%)
B20: 4 | C20: Teaching & Educational Material | D20: 25 | E20: 12 | F20: 100 | G20: =D20*E20*F20 -> 30000
B21: 5 | C21: Picnic & Events | D21: 50 | F21: 100 | G21: =D21*F21 -> 5000
B22: 6 | C22: Support Activities/Miscellaneous | D22: 20 | F22: 100 | G22: =D22*F22 -> 2000
B23: 7 | C23: Transport | D23: 300 | E23: 10 | F23: 20 | G23: =D23*E23*F23 -> 60000
C24: Total of III | G24: =SUM(G17:G23) -> 441088
C25: Total of I+ II+III | G25: =G15+G9+G24 -> 461533
B26: IV | C26: ADMINISTRATIVE EXPENSES
B27: 1 | C27: Telephone, stationary, postage, admin staff and other organizational costs @ approx 10% of Total of I+ II+III | G27: =G25*10% -> 46153.3
C28: Grand Total I+ II+III+IV( Rounded) | G28: =CEILING(G25+G27,100) -> 507700
C29: Funding by Builders (18 % of total cost) | G29: =G28*18% -> 91386
C30: Funding Requested ( 82% of total cost) | G30: =CEILING(G28-G29,100) -> 416400
C32: Funding per month per site ( rounded) | G32: =G30/2/12 -> 17350
C33: Funding per child/per month ( rounded) | G33: =G32/50 -> 347
B36: Notes:
B37: a. | C37: Staff Event: | D37: We organize Annual Day program for staff once a year. In addition to this we also organize cluster level review meetings for our entire project to access the progress of each project. Staff event budget head cost include the cost involved for this activity.
B38: b. | C38: Support Activities/ Miscellaneous: | D38: When we run classes we provide some material which is necessary to the children of that class e.g. a toilet is not provided by the builder, we need to provide a mobile toilet for the children and teachers on the construction sites, Housekeeping material etc.
B39: c. | C39: Picnic and Events: | D39: We organize picnic at once in year, We also organise events like Diwali, Makarsankrat, Republic Day, Independence Day etc.
B40: d. | C40: Teaching & Educational Material: | D40: We have reduced the cost because we approach different people to donate stationery which was utilized in the class. Hence the cut in the cost of the teaching and educational material.
B41: f. | C41: No. of children: | D41: Assumption - Per site 50 children
